bitfinex/quotes_SOLUSD_20250704
["timestamp","ask_amount","ask_price","bid_price","bid_amount"]
[1751654777321,45.55513826,146.81,146.8,0.2]
[1751654777505,47.10293826,146.81,146.8,0.2]
[1751654777819,45.35497084,146.81,146.8,0.2]
[1751654779413,52.16649594,146.81,146.8,0.2]
[1751654781712,86.70649594,146.81,146.8,0.2]
[1751654786230,88.45446336,146.81,146.8,0.2]
[1751654786518,81.62461866,146.81,146.8,0.2]
[1751654788419,34.08897396,146.81,146.8,0.2]
[1751654788623,39.37101866,146.81,146.8,0.2]
[1751654788820,32.55949356,146.81,146.8,0.2]
[1751654789008,39.37101866,146.81,146.8,0.2]
[1751654795428,13.9098447,146.81,146.8,0.2]
[1751654806037,7.08,146.81,146.8,0.2]
[1751654806339,20.7213698,146.81,146.8,0.2]
[1751654806534,13.9098447,146.81,146.8,0.2]
[1751654813638,7.08,146.81,146.8,0.2]
[1751654813843,7.08,146.81,146.8,7.0119891]
[1751654814749,7.08,146.81,146.8,0.2]
[1751654820457,13.9098447,146.81,146.8,0.2]
[1751654823056,20.7213698,146.81,146.8,0.2]
[1751654823552,13.9098447,146.81,146.8,0.2]
[1751654823956,7.08,146.81,146.8,0.2]
[1751654824157,13.9098447,146.81,146.8,0.2]
[1751654825263,7.08,146.81,146.8,0.2]
[1751654825443,6.8298447,146.83,146.8,0.2]
[1751654825757,11.92815013,146.83,146.8,0.2]
[1751654827538,18.73877827,146.83,146.8,0.2]
[1751654827740,13.64047284,146.83,146.8,0.2]
[1751654828063,6.8298447,146.82,146.8,0.2]
[1751654830957,13.64092852,146.82,146.8,0.2]
[1751654831163,6.8298447,146.82,146.8,0.2]
[1751654833255,11.93280848,146.82,146.8,0.2]
[1751654833455,6.8298447,146.82,146.8,0.2]
[1751654833858,6.81081579,146.83,146.8,0.2]
[1751654834046,5.10275089,146.83,146.8,7.01197145]
[1751654834248,9.47413269,146.84,146.8,4.5713818]
[1751654834454,5.10275089,146.83,146.8,0.2]
[1751654834653,9.47413269,146.83,146.8,0.2]
[1751654836248,4.3713818,146.83,146.8,0.2]
[1751654836654,9.47599115,146.83,146.8,0.2]
[1751654836861,16.28670114,146.83,146.8,0.2]
[1751654837061,11.18209179,146.83,146.8,0.2]
[1751654838259,5.10599517,146.82,146.8,0.2]
[1751654839552,9.47737697,146.82,146.8,0.2]
[1751654841373,5.10599517,146.82,146.8,0.2]
[1751654842075,9.47737697,146.82,146.8,0.2]
[1751654842245,4.3713818,146.82,146.8,0.2]
[1751654845969,11.18212091,146.83,146.8,0.2]
[1751654846453,11.18212091,146.83,146.81,26.0]
[1751654847255,4.3713818,146.82,146.81,26.0]
[1751654847457,11.18212091,146.83,146.81,26.0]
[1751654849579,5.10662109,146.82,146.81,26.0]
[1751654850578,9.47800289,146.82,146.81,26.0]
[1751654854084,11.18212091,146.83,146.81,26.0]
[1751654854585,11.18212091,146.83,146.8,26.2]
[1751654855486,4.3713818,146.83,146.8,26.2]
[1751654857385,5.10950246,146.82,146.81,26.0]
[1751654872903,5.10950246,146.82,146.8,0.2]
[1751654872904,18.64964886,146.81,146.8,0.2]
[1751654873086,28.13053312,146.81,146.8,0.2]
[1751654873474,117.93053312,146.81,146.8,0.2]
[1751654873678,117.93053312,146.81,146.78,0.2]
[1751654873679,143.33921265,146.81,146.78,0.2]
[1751654873903,27.937409,146.79,146.78,0.2]
[1751654874195,40.10691146,146.79,146.78,0.2]
[1751654875105,46.91936462,146.79,146.78,0.2]
[1751654875302,52.40050729,146.79,146.78,0.2]
[1751654875481,71.05015615,146.79,146.78,0.2]
[1751654876577,20.22934886,146.78,146.75,0.2]
[1751654876803,23.02103066,146.76,146.75,0.2]
[1751654877101,34.94437885,146.76,146.75,0.2]
[1751654879291,29.83487639,146.76,146.75,0.2]
[1751654880790,30.55223677,146.76,146.75,0.2]
[1751654880995,34.92361857,146.76,146.75,0.2]
[1751654881690,29.83487639,146.76,146.75,0.2]
[1751654883308,34.91889312,146.76,146.75,0.2]
[1751654884500,18.64964886,146.75,146.74,0.2]
[1751654884702,28.10504739,146.75,146.74,0.2]
[1751654885694,34.91935744,146.75,146.74,0.2]
[1751654885990,37.39009219,146.75,146.74,0.2]
[1751654886502,32.30607546,146.75,146.74,0.2]
[1751654903226,71.87334692,146.75,146.74,0.2]
[1751654903423,46.20034886,146.73,146.72,0.2]
[1751654903624,64.95185342,146.73,146.72,0.2]
[1751654904323,99.45185342,146.73,146.72,0.2]
[1751654905706,106.26709229,146.73,146.72,0.2]
[1751654905909,114.48414489,146.73,146.72,0.2]
[1751654906311,114.48414489,146.73,146.69,0.2]
[1751654906526,18.64964886,146.68,146.65,0.2]
[1751654906820,18.64964886,146.66,146.65,0.2]
[1751654907032,23.029906,146.66,146.65,0.2]
[1751654907323,28.10186374,146.66,146.65,0.2]
[1751654907538,23.029906,146.66,146.65,0.2]
[1751654907733,29.84839774,146.66,146.65,0.2]
[1751654909213,47.3694263,146.66,146.64,0.2]
[1751654909415,87.19953362,146.65,146.64,0.2]
[1751654909722,18.64964886,146.64,146.6,0.2]
[1751654909913,25.50191301,146.62,146.6,0.2]
[1751654911319,32.32226494,146.62,146.6,0.2]
[1751654912436,37.84192884,146.62,146.6,0.2]
[1751654913214,32.32226494,146.62,146.6,0.2]
[1751654915233,37.74805879,146.62,146.6,0.2]
[1751654924534,18.64964886,146.62,146.6,0.2]
[1751654924721,25.50191301,146.62,146.6,0.2]
[1751654925121,32.32226494,146.62,146.6,0.2]
[1751654938657,6.85226415,146.62,146.6,0.2]
[1751654938952,6.85226415,146.63,146.6,0.2]
[1751654939128,6.85226415,146.62,146.6,0.2]
[1751654939752,4.38365692,146.62,146.6,0.2]
[1751654940343,23.03330578,146.62,146.6,0.2]
[1751654941245,18.64964886,146.61,146.6,0.2]
[1751654941558,112.83330578,146.61,146.6,0.2]
[1751654941745,122.12532242,146.61,146.6,0.2]
[1751654942468,127.1979963,146.61,146.6,0.2]
[1751654943134,122.12532242,146.61,146.6,0.2]
[1751654943355,127.2003791,146.61,146.6,0.2]
[1751654946538,37.4003791,146.61,146.6,0.2]
[1751654947152,37.4003791,146.61,146.58,0.2]
[1751654947153,54.45242193,146.61,146.58,0.2]
[1751654947463,32.35936172,146.59,146.58,0.2]
[1751654947647,37.4344184,146.59,146.58,0.2]
[1751654948240,32.35936172,146.59,146.58,0.2]
[1751654948868,32.32625302,146.59,146.58,0.2]
[1751654950461,39.18110945,146.59,146.58,0.2]
[1751654951349,32.32625302,146.59,146.58,0.2]
[1751654952357,37.43433321,146.59,146.58,0.2]
[1751654953038,44.28918964,146.59,146.58,0.2]
[1751654953457,50.61461708,146.59,146.58,0.2]
[1751654953671,44.28918964,146.59,146.58,0.2]
[1751654954675,50.67517455,146.59,146.58,0.2]
[1751654954973,25.50450529,146.56,146.55,0.2]
[1751654955278,72.19258548,146.56,146.55,0.2]
[1751654957150,79.01572958,146.56,146.55,0.2]
[1751654962271,18.64964886,146.55,146.54,0.2]
[1751654962469,30.61258548,146.55,146.54,0.2]
[1751654964374,37.43619516,146.55,146.54,0.2]
[1751654965273,108.44964886,146.54,146.53,0.2]
[1751654965472,154.95258548,146.54,146.53,0.2]
[1751654966571,122.12858062,146.54,146.53,0.2]
[1751654978573,127.21635777,146.54,146.53,0.2]
[1751654979486,18.64964886,146.53,146.51,0.2]
[1751654979676,96.65485643,146.52,146.51,0.2]
[1751654980379,101.74308824,146.52,146.51,0.2]
[1751654980668,108.56809506,146.52,146.51,0.2]
[1751654981377,103.47986325,146.52,146.51,0.2]
[1751654981576,108.56877096,146.52,146.51,0.2]
[1751654984489,127.21841982,146.52,146.51,0.2]
[1751654985085,37.41841982,146.52,146.51,0.2]
[1751654985487,44.27327625,146.52,146.51,0.2]
[1751654985791,52.52675174,146.52,146.51,0.2]
[1751654987986,44.29080053,146.52,146.51,0.2]
[1751654989092,18.64964886,146.48,146.43,1.581]
[1751654989270,37.68217514,146.48,146.43,1.581]
[1751654990089,44.5090457,146.48,146.43,1.581]
[1751654998286,44.5090457,146.48,146.42,0.1]
[1751654998685,61.5762221,146.48,146.42,0.1]
[1751654998878,39.62890771,146.47,146.42,0.1]
[1751654999099,6.86361857,146.45,146.42,0.1]
[1751654999292,6.86361857,146.44,146.42,0.1]
[1751655000222,6.86361857,146.45,146.42,0.1]
[1751655000501,6.86361857,146.46,146.42,6.92947742]
[1751655000815,11.95099687,146.47,146.43,6.86361857]
[1751655001108,6.86361857,146.47,146.43,6.86361857]
[1751655001287,6.86361857,146.47,146.43,13.69269011]
[1751655002112,6.86361857,146.47,146.43,6.86361857]
[1751655003086,13.69095541,146.47,146.43,6.86361857]
[1751655003609,6.86361857,146.47,146.43,6.86361857]
[1751655003808,32.55673331,146.48,146.43,13.6927408]
[1751655004011,6.86361857,146.47,146.43,13.6927408]
[1751655004224,6.86361857,146.47,146.42,6.92954891]
[1751655004521,6.86361857,146.46,146.42,13.79316748]
[1751655004917,6.86361857,146.46,146.42,6.92954891]
[1751655005104,6.86361857,146.46,146.42,6.96361857]
[1751655005305,6.86361857,146.46,146.42,13.79326552]
[1751655006903,32.55652279,146.48,146.42,13.79326552]
[1751655007222,6.86361857,146.46,146.42,13.79326552]
[1751655008637,7.08,146.48,146.42,6.92964695]
[1751655008831,7.08,146.48,146.46,6.86361857]
[1751655009413,7.08,146.48,146.45,26.0]
[1751655009610,7.08,146.48,146.46,6.86361857]
[1751655010349,13.94361857,146.48,146.45,26.0]
[1751655010632,7.08,146.48,146.45,32.82818072]
[1751655011834,7.08,146.48,146.45,39.69179929]
[1751655013231,7.08,146.48,146.46,6.86361857]
[1751655014031,7.08,146.48,146.47,6.82733665]
[1751655014405,7.08,146.48,146.46,13.69123421]
[1751655014807,7.08,146.48,146.47,6.86361857]
[1751655015826,103.88454891,146.53,146.47,13.69095522]
[1751655016005,11.95276223,146.52,146.47,13.69095522]
[1751655016424,11.95276223,146.52,146.48,6.86361857]
[1751655017127,11.95276223,146.52,146.48,13.69033282]
[1751655020828,5.08914366,146.52,146.48,13.69033282]
[1751655021130,5.08914366,146.52,146.49,6.86361857]
[1751655021918,20.94823069,146.53,146.49,6.86361857]
[1751655022118,5.08914366,146.52,146.49,6.86361857]
[1751655022326,12.34914366,146.53,146.49,6.86361857]
[1751655022720,12.34914366,146.53,146.49,13.68992722]
[1751655023326,19.21276223,146.53,146.49,13.68992722]
[1751655023538,5.08914366,146.52,146.49,13.68992722]
[1751655023837,7.26,146.53,146.51,6.86361857]
[1751655023838,12.34914366,146.53,146.51,6.86361857]
[1751655024136,7.26,146.53,146.51,6.86361857]
[1751655024342,7.26,146.53,146.51,32.86361857]
[1751655024513,0.2,146.53,146.52,6.86361857]
[1751655027649,0.2,146.53,146.52,13.68862539]
[1751655027832,0.2,146.53,146.52,15.23742539]
[1751655034146,0.2,146.53,146.52,8.37380682]
[1751655034450,0.2,146.53,146.52,15.23742539]
[1751655034752,0.2,146.53,146.52,8.37380682]
[1751655034955,0.2,146.53,146.52,15.23742539]
[1751655039436,0.2,146.59,146.52,21.28242539]
[1751655039661,6.86361857,146.57,146.55,26.0]
[1751655039834,4.38688225,146.57,146.55,26.0]
[1751655041656,4.38688225,146.57,146.54,26.0]
[1751655041854,4.38688225,146.56,146.54,26.0]
[1751655043761,6.85508814,146.56,146.54,26.0]
[1751655044166,6.85508814,146.55,146.54,26.0]
[1751655044659,6.85508814,146.55,146.48,26.29234886]
[1751655044660,6.85508814,146.55,146.48,1.5977]
[1751655044851,6.85508814,146.52,146.48,8.45278814]
[1751655045051,6.85508814,146.52,146.51,26.0]
[1751655045452,6.85508814,146.53,146.51,26.0]
[1751655045660,6.85508814,146.54,146.5,32.85508814]
[1751655046962,13.88331166,146.56,146.51,13.68034034]
[1751655047168,6.85508814,146.55,146.51,13.68034034]
[1751655048547,13.91508814,146.56,146.52,32.85508814]
[1751655049763,13.91508814,146.56,146.52,39.68005917]
[1751655051665,13.91508814,146.56,146.52,26.0]
[1751655052563,6.85508814,146.55,146.52,26.0]
[1751655052803,6.85508814,146.55,146.52,32.82498671]
[1751655053548,13.91508814,146.56,146.52,32.82498671]
[1751655055563,6.85508814,146.56,146.52,32.82498671]
[1751655056165,6.85508814,146.56,146.52,39.68007485]
[1751655059869,6.85508814,146.57,146.52,39.68007485]
[1751655060583,5.09182481,146.58,146.55,6.85508814]
[1751655060775,7.28,146.59,146.55,6.85508814]
[1751655061281,12.37411359,146.59,146.55,6.85508814]
[1751655062181,12.37411359,146.59,146.55,13.67844496]
[1751655062680,19.22920173,146.59,146.55,6.82335682]
[1751655062980,14.13508814,146.59,146.55,13.67844496]
[1751655063679,7.28,146.59,146.57,6.85508814]
[1751655064177,7.28,146.59,146.57,13.67751679]
[1751655067170,7.28,146.59,146.58,6.85508814]
[1751655067366,7.28,146.59,146.57,6.82242865]
[1751655067580,7.28,146.59,146.57,13.67751679]
[1751655068572,0.2,146.59,146.57,13.67751679]
[1751655069859,0.2,146.59,146.58,6.85508814]
[1751655070905,0.2,146.59,146.58,13.67730126]
[1751655071389,0.2,146.59,146.58,6.82221312]
[1751655071766,0.2,146.59,146.58,13.67730126]
[1751655072585,0.2,146.59,146.58,6.82221312]
[1751655073600,0.2,146.59,146.57,13.67768438]
[1751655075888,0.2,146.59,146.58,26.0]
[1751655076792,0.2,146.59,146.58,30.38374777]
[1751655077986,0.2,146.59,146.58,37.20596089]
[1751655094818,0.2,146.59,146.58,32.82221312]
[1751655095605,0.2,146.59,146.58,26.0]
[1751655095810,4.58374777,146.59,146.58,26.0]
[1751655096515,4.58374777,146.59,146.55,32.82346462]
[1751655098108,4.58374777,146.59,146.55,37.20721239]
[1751655101905,4.58374777,146.59,146.55,32.82346462]
[1751655102216,4.58374777,146.59,146.52,35.71191474]
[1751655102217,4.38374777,146.58,146.57,26.0]
[1751655104417,4.58374777,146.59,146.57,26.0]
[1751655107194,0.2,146.59,146.57,32.82260474]
[1751655108215,0.2,146.59,146.56,37.2066825]
[1751655113020,0.2,146.59,146.56,32.82293473]
[1751655113214,4.58374777,146.59,146.56,32.82293473]
[1751655113417,4.58374777,146.59,146.56,26.0]
[1751655120913,4.38374777,146.58,146.57,26.0]
[1751655122725,0.2,146.59,146.57,26.0]
[1751655122726,4.58374777,146.59,146.57,26.0]
[1751655123733,4.58374777,146.59,146.54,37.20759834]
[1751655124333,11.40552625,146.59,146.54,37.20759834]
[1751655124725,0.2,146.59,146.54,37.20759834]
[1751655124919,0.2,146.59,146.57,26.0]
[1751655125117,4.58374777,146.59,146.57,26.0]
[1751655126933,4.58374777,146.59,146.55,11.20731455]
[1751655127126,4.58374777,146.59,146.55,6.82356678]
[1751655127330,4.58374777,146.59,146.55,11.20731455]
[1751655127531,0.2,146.59,146.55,11.20731455]
[1751655127733,0.2,146.59,146.57,4.38374777]
[1751655129125,0.2,146.59,146.57,37.20627086]
[1751655130338,0.2,146.59,146.57,32.82252309]
[1751655131737,0.2,146.59,146.57,26.0]
[1751655133442,4.58374777,146.59,146.57,26.0]
[1751655133813,4.38374777,146.58,146.54,32.82384691]
[1751655134026,4.38374777,146.57,146.54,32.82384691]
[1751655134246,5.11273791,146.58,146.54,32.82384691]
[1751655134541,9.49648568,146.58,146.54,32.82384691]
[1751655134734,4.38374777,146.56,146.54,26.0]
[1751655135536,4.38374777,146.55,146.54,26.0]
[1751655138739,5.11177254,146.57,146.54,32.82403296]
[1751655138943,4.38374777,146.56,146.54,26.0]
[1751655139338,4.38374777,146.55,146.54,26.0]
[1751655141016,10.61094777,146.55,146.47,19.43238252]
[1751655141257,4.38374777,146.49,146.47,0.1]
[1751655141434,4.38374777,146.5,146.47,0.1]
[1751655141624,33.06,146.54,146.47,0.1]
[1751655142046,30.38374777,146.5,146.47,0.1]
[1751655142364,26.0,146.5,146.47,4.48374777]
[1751655142655,26.0,146.52,146.49,4.38374777]
[1751655142894,7.06,146.54,146.51,4.38374777]
[1751655143023,7.06,146.54,146.52,6.82500682]
[1751655143366,7.06,146.54,146.52,11.20875459]
[1751655144049,7.06,146.54,146.52,4.38374777]
[1751655145236,7.06,146.54,146.51,4.38374777]
[1751655145949,7.06,146.54,146.51,6.85495986]
[1751655146432,7.06,146.54,146.48,23.89289182]
[1751655146640,7.06,146.54,146.51,6.85495986]
[1751655148740,7.06,146.54,146.5,6.82552304]
[1751655148942,7.06,146.54,146.51,6.85495986]
[1751655149856,6.85495986,146.57,146.52,6.85495986]
[1751655150069,20.34215986,146.59,146.54,6.85495986]
[1751655150246,20.34215986,146.59,146.51,30.74392684]
[1751655150247,13.4872,146.59,146.51,23.88896698]
[1751655150557,6.85495986,146.58,146.54,6.85495986]
[1751655150771,39.4872,146.59,146.54,6.85495986]
[1751655150933,5.10045406,146.58,146.54,6.85495986]
[1751655151333,11.95541392,146.58,146.54,6.85495986]
[1751655151556,6.85495986,146.57,146.53,6.85495986]
[1751655151770,11.95541392,146.57,146.53,13.6791939]
[1751655152070,11.95541392,146.58,146.53,13.6791939]
[1751655155257,5.10045406,146.57,146.53,13.6791939]
[1751655156071,11.95541392,146.57,146.53,13.6791939]
[1751655156252,6.85495986,146.57,146.53,13.6791939]
[1751655156452,11.95541392,146.57,146.53,13.6791939]
[1751655156648,6.85495986,146.57,146.53,6.85495986]
[1751655156969,6.85495986,146.55,146.51,6.85495986]
[1751655157264,6.85495986,146.55,146.5,6.85495986]
[1751655157463,6.85495986,146.55,146.48,6.82671313]
[1751655157464,6.85495986,146.53,146.48,6.82671313]
[1751655157670,6.85495986,146.51,146.47,8.51535986]
[1751655157967,6.85495986,146.48,146.47,0.1]
[1751655173358,6.85495986,146.49,146.47,0.1]
[1751655173554,32.85495986,146.5,146.47,0.1]
[1751655174365,26.0,146.51,146.47,13.78227237]
[1751655174564,7.06,146.52,146.49,6.85495986]
[1751655174883,33.06,146.52,146.49,6.85495986]
[1751655176065,7.06,146.52,146.49,6.85495986]
[1751655176382,7.06,146.52,146.51,6.85495986]
[1751655176570,13.67813628,146.56,146.51,6.85495986]
[1751655176759,26.0,146.54,146.51,6.85495986]
[1751655176962,6.85495986,146.55,146.51,6.85495986]
[1751655177169,26.0,146.54,146.51,6.85495986]
[1751655177483,26.0,146.54,146.5,6.82593856]
[1751655177684,26.0,146.54,146.51,6.85495986]
[1751655177879,26.0,146.54,146.51,13.68022829]
[1751655178191,6.85495986,146.57,146.53,6.85495986]
[1751655178478,26.0,146.56,146.53,6.85495986]
[1751655178685,6.85495986,146.57,146.53,6.85495986]
[1751655178873,11.94131327,146.57,146.53,6.85495986]
[1751655179076,26.0,146.55,146.54,6.85495986]
[1751655179464,26.0,146.55,146.53,6.85495986]
[1751655179667,32.85495986,146.55,146.51,6.85495986]
[1751655179867,32.85495986,146.55,146.5,6.85495986]
[1751655180679,6.85495986,146.54,146.5,6.85495986]
[1751655180982,6.85495986,146.53,146.48,13.68183042]
[1751655183991,6.85495986,146.53,146.49,13.68100127]
[1751655186593,6.85495986,146.54,146.49,6.82604141]
[1751655186785,6.85495986,146.53,146.49,13.68100127]
[1751655190297,6.85495986,146.53,146.49,6.85495986]
[1751655191391,6.85495986,146.54,146.5,6.85495986]
[1751655191697,6.85495986,146.57,146.53,6.85495986]
[1751655192281,32.85495986,146.57,146.53,13.67947615]
[1751655193991,26.0,146.57,146.53,13.67947615]
[1751655194505,26.0,146.57,146.54,6.85495986]
[1751655194892,32.85495986,146.57,146.53,13.67947615]
[1751655196695,26.0,146.57,146.53,13.67947615]
[1751655196909,26.0,146.57,146.54,6.85495986]
[1751655197589,7.1,146.58,146.55,6.85495986]
[1751655197993,13.95495986,146.58,146.54,6.85495986]
[1751655199105,13.95495986,146.58,146.54,13.67870819]
[1751655199493,7.1,146.58,146.54,13.67870819]
[1751655199810,13.95495986,146.58,146.54,13.67870819]
[1751655200781,13.95495986,146.58,146.51,18.64964886]
[1751655201007,13.95495986,146.58,146.54,6.85495986]
[1751655201407,13.95495986,146.58,146.54,13.67894562]
[1751655202398,13.95495986,146.58,146.54,6.82398576]
[1751655202599,13.95495986,146.58,146.54,13.67894562]
[1751655203397,13.95495986,146.58,146.54,6.82398576]
[1751655203985,13.95495986,146.58,146.54,13.67894562]
[1751655208592,7.1,146.58,146.54,13.67894562]
[1751655208916,13.95495986,146.58,146.54,13.67894562]
[1751655209317,6.85495986,146.57,146.52,6.82500682]
[1751655209535,6.85495986,146.57,146.53,6.85495986]
[1751655210393,6.85495986,146.57,146.53,13.67903637]
[1751655211206,13.95495986,146.58,146.54,6.85495986]
[1751655212816,13.95495986,146.58,146.54,13.67860446]
[1751655214607,7.1,146.58,146.54,6.8236446]
[1751655214819,7.1,146.58,146.55,6.85495986]
[1751655215227,7.1,146.58,146.56,6.8231441]
[1751655217424,7.1,146.58,146.54,6.85495986]
[1751655218228,13.95495986,146.58,146.53,6.85495986]
[1751655219125,6.85495986,146.58,146.53,6.85495986]
[1751655219310,11.94976178,146.58,146.53,6.85495986]
[1751655219511,11.94976178,146.58,146.54,13.67867923]
[1751655220618,33.05495986,146.59,146.54,13.67867923]
[1751655221001,6.85495986,146.58,146.54,13.67867923]
[1751655221529,33.05495986,146.59,146.55,6.85495986]
[1751655223445,33.05495986,146.59,146.55,13.67815618]
[1751655224418,0.2,146.59,146.56,6.85495986]
[1751655224631,0.2,146.59,146.57,6.85495986]
[1751655224836,0.2,146.59,146.55,6.82319632]
[1751655224837,0.2,146.59,146.56,6.85495986]
[1751655225637,0.2,146.59,146.57,6.85495986]
[1751655226639,0.2,146.59,146.58,6.82221312]
[1751655227646,0.2,146.59,146.58,13.67717298]
[1751655228013,0.2,146.59,146.58,6.82221312]
[1751655234647,0.2,146.59,146.58,13.67717298]
[1751655235454,0.2,146.59,146.58,26.0]
[1751655235646,0.2,146.59,146.58,32.85495986]
[1751655236048,0.2,146.59,146.58,26.0]
[1751655236244,0.2,146.59,146.58,32.85495986]
[1751655236847,0.2,146.59,146.58,39.67717298]
[1751655239853,0.2,146.59,146.58,37.20484811]
[1751655241834,0.2,146.59,146.58,39.67006719]
[1751655244540,0.2,146.59,146.58,32.82221312]
[1751655244859,0.2,146.59,146.58,39.67006719]
[1751655245645,0.2,146.59,146.58,59.00193736]
[1751655249461,0.2,146.59,146.58,65.84979143]
[1751655249661,1e-08,146.6,146.58,214.74979143]
[1751655249862,1e-08,146.6,146.59,25.49750293]
[1751655250036,1e-08,146.6,146.59,208.89750293]
[1751655251568,1e-08,146.6,146.59,215.71925066]
[1751655254368,1e-08,146.61,146.6,25.49750293]
[1751655254561,1e-08,146.61,146.6,26.17963117]
[1751655255970,0.2,146.63,146.61,18.64964886]
[1751655256169,0.2,146.63,146.62,7.52988926]
[1751655256679,1e-08,146.63,146.62,235.57953812]
[1751655256868,0.1,146.7,146.67,18.64964886]
[1751655257055,0.1,146.7,146.67,25.49750293]
[1751655258169,0.1,146.7,146.67,32.31552979]
[1751655260148,0.1,146.7,146.67,13.66588093]
[1751655266982,0.1,146.7,146.67,6.81802686]
[1751655267179,0.1,146.7,146.67,13.66588093]
[1751655275799,0.1,146.7,146.67,11.19518095]
[1751655279602,0.1,146.7,146.67,6.81802686]
[1751655279800,4.47715409,146.7,146.66,11.19546692]
[1751655280003,4.47715409,146.68,146.64,4.37715409]
[1751655280875,0.1,146.68,146.65,4.37715409]
[1751655281707,0.1,146.68,146.66,6.81849174]
[1751655285101,0.1,146.68,146.65,13.66134466]
[1751655289304,0.1,146.68,146.65,6.84260338]
[1751655290895,0.1,146.68,146.66,6.81849174]
[1751655293292,0.1,146.68,146.64,13.66202509]
[1751655293586,6.84260338,146.65,146.61,6.84260338]
[1751655294816,6.84260338,146.65,146.62,6.82025549]
[1751655295020,6.84260338,146.65,146.61,6.82065282]
[1751655295513,6.84260338,146.64,146.61,6.82065282]
[1751655295690,6.84260338,146.65,146.61,6.82065282]
[1751655295891,7.7248,146.67,146.61,13.6632562]
[1751655296216,6.84260338,146.65,146.61,13.6632562]
[1751655296716,6.84260338,146.66,146.62,6.84260338]
[1751655297024,6.84260338,146.66,146.63,6.81988678]
[1751655299116,6.84260338,146.66,146.61,6.82081713]
[1751655299293,6.84260338,146.66,146.62,6.84260338]
[1751655300400,6.84260338,146.66,146.61,6.82081713]
[1751655300618,6.84260338,146.66,146.61,13.66342051]
[1751655300918,6.84260338,146.65,146.61,13.66342051]
[1751655301320,6.84260338,146.64,146.61,6.82081713]
[1751655301621,6.84260338,146.63,146.6,32.82106741]
[1751655301920,4.3827933,146.63,146.6,32.82106741]
[1751655302321,4.3827933,146.63,146.59,4.5827933]
[1751655302322,4.3827933,146.63,146.59,0.2]
[1751655302616,4.3827933,146.61,146.59,7.02172885]
[1751655302932,1.5661,146.65,146.59,7.02172885]
[1751655303227,4.3827933,146.62,146.59,7.02172885]
[1751655304924,4.3827933,146.63,146.59,11.40452215]
[1751655305418,4.3827933,146.64,146.6,4.3827933]
[1751655306220,4.3827933,146.64,146.61,6.82081713]
[1751655306722,4.3827933,146.63,146.61,6.82081713]
[1751655307121,4.3827933,146.64,146.61,6.82081713]
[1751655310423,4.3827933,146.63,146.6,6.82110936]
[1751655310614,4.3827933,146.62,146.59,7.02152241]
[1751655311015,4.3827933,146.63,146.59,11.40431571]
[1751655311528,8.3851744,146.65,146.59,11.40431571]
[1751655311830,4.3827933,146.63,146.59,11.40431571]
[1751655314026,8.38511437,146.65,146.59,11.40431571]
[1751655314207,4.3827933,146.63,146.59,11.40431571]
[1751655315230,1.5661,146.65,146.6,4.3827933]
[1751655315437,5.9488933,146.65,146.61,4.3827933]
[1751655316109,4.3827933,146.64,146.6,4.3827933]
[1751655316919,4.3827933,146.63,146.59,11.40431571]
[1751655317250,8.38507182,146.65,146.59,7.02152241]
[1751655317414,4.3827933,146.62,146.59,7.02152241]
[1751655318014,4.3827933,146.61,146.59,0.2]
[1751655318521,4.3827933,146.6,146.59,0.2]
[1751655319948,6.85064831,146.6,146.59,0.2]
[1751655322561,6.85064831,146.61,146.59,0.2]
[1751655323567,6.85064831,146.62,146.59,7.02169659]
[1751655323940,6.85064831,146.63,146.59,7.02169659]
[1751655324344,6.85064831,146.63,146.59,13.8723449]
[1751655324666,98.21674831,146.65,146.6,6.85064831]
[1751655324835,8.41674831,146.65,146.6,6.85064831]
[1751655325036,8.41674831,146.65,146.61,6.85064831]
[1751655325452,8.41674831,146.65,146.61,13.67112298]
[1751655326760,8.41674831,146.65,146.61,6.82047467]
[1751655326964,8.41674831,146.65,146.61,13.67112298]
[1751655327646,8.41674831,146.65,146.6,6.8212824]